Workbook

Sheet Cover Page
N2: Version 20.6
B8: Add photo
N13: Notes:
N14: This template may require adjustments by individual operators to meet specific reporting requirements as defined in the site Permit(s)
B29: Annual Performance Report 2020
B31: Permit EPR/FP3739FS
B33: Lincolnshire Energy from Waste Facility
B37: FCC Environment (Lincolnshire) Limited
B39: Year: | C39: 2020
B41: Address: | C41: Paving Way, Off Whisby Road, North Hykeham, Lincoln, LN63QW
B43: Tel: | C43: 01522 814315
B45: Email:
B47: Prepared by: | C47: Michael Day | F47: Position: | G47: Environment Manager
B49: Approved by: | C49: Juergen Schaper | F49: Position: | G49: General Manager
B51: Version: | C51: 1
B53: Issue Date: | C53: 2021-01-25

Sheet Contents
A1: =+'Cover Page'!$B$29 -> Annual Performance Report 2020 | E1: =+'Cover Page'!$B$33 -> Lincolnshire Energy from Waste Facility
A3: Contents | K3: Notes:
A4: Section | B4: Subject | H4: Page | K4: Section references and Page nos. to be inserted
B5: Facility Information | H5: 3 | K5: Sections and Subjects may require adjustment by individual operators to meet specific reporting requirements as defined in the sites Permit(s)
B6: Operational Data | H6: 4
B7: Operational Summary | H7: 5
B8: Performance Form 1 | H8: 6
B9: Energy Form 1 | H9: 7
B10: Permit Compliance | H10: 8
B11: Improvements | H11: 9
B12: Public Liaison | H12: 10
B13: Residue Quality | H13: 11
B14: Emissions to Water | H14: 12
B15: Emissions to Air (periodically monitored) | H15: 13
B16: Emissions to Air (continuously monitored) | H16: 14
B17: Hydrogen Chloride emissions | H17: 15
B18: Sulphur Dioxide emissions | H18: 16
B19: Oxides of Nitrogen emissions | H19: 17
B20: Total Organic Carbon emissions | H20: 18
B21: Particulate Matter emissions | H21: 19
B22: Carbon Monoxide emissions | H22: 20
B23: Ammonia emissions | H23: 21
A25: Version Control
A26: Section | B26: Information | H26: Date
A33: Distribution
A34: Copy | B34: Name, Role | H34: No.
A43: This report is required under the Industrial Emissions Directive’s Article 55(2) requirements on reporting and public information on waste incineration plants and co-incineration plants, which require the operator to produce an annual report on the functioning and monitoring of the plant and make it available to the public.

Sheet Facility Info
A1: =+'Cover Page'!$B$29 -> Annual Performance Report 2020 | E1: =+'Cover Page'!$B$33 -> Lincolnshire Energy from Waste Facility
A3: Plant Description and Design | K3: Notes:
A5: The EFW facility has a total capacity of approximately 49.7 MW (thermal input) and is capable of generating up to 13.1 MWe of electrical power, the majority of which is exported to the National Grid. Provision has been made to supply additional heat in the form of up to 10 MWth when a commercial scheme becomes available to take the heat. The facility consists of one incinerator line with a total annual permitted capacity of 190,000 tonnes per year. | K5: Include summary of plant design, design capacity, no. of combustion lines, electrical and heat capacity and any other general information that describes the facility, its location and purpose
A12: Summary of Operational Processes and Procedures
A14: Waste material burned at the facility is residual municipal solid waste (i.e. waste that has had recyclable and re-usable materials source segregated) and commercial and industrial (C&I) waste derived from residential, commercial and industrial sources. All waste material for processing received at the facility is non-hazardous. Waste material arrives by road and is weighed before proceeding into the tipping hall where it is tipped into the waste bunker of sufficient capacity to hold several days waste inputs. Moving grate technology is used for burning the waste material. The furnace design ensures that a temperature of at least 850°C for a period of at least two seconds is achieved in the combustion chamber. To ensure that the temperature does not fall below 850°C auxiliary burners firing fuel oil are automatically triggered by online process monitoring equipment. Hot gases from the furnace pass into a boiler. Steam raised in the boiler is passed to a turbine to generate electricity. Combustion gases are cleaned before they are released to atmosphere. There are four components to the gas cleaning abatement technique; - Selective Non-Catalytic Reduction (SNCR) involving the injection of ammonia into the combustion chamber above the flame providing for the abatement of nitrogen oxides. - Dry hydrated lime re-agent injected to neutralise acid gas compounds. - Activated carbon injected to absorb heavy metals, dioxins and furans. - Bag filtration to remove fine particulates. The residues of the bag filters are collected and directed to a residues silo. Part of the residues are recycled to the reagent injection points to ensure maximum usage of the lime content. Cleaned flue gases exiting the abatement system of the incinerator line are discharged through the 75m tall stack. Gases are continuously monitored for particulate matter, oxides of nitrogen, sulphur dioxide, carbon monoxide, total organic carbon, hydrogen chloride and ammonia. Monitoring for heavy metals, dioxins, nitrous oxide and hydrogen fluoride is carried out periodically. Under normal circumstances there are no liquid effluent emissions from the incinerator. Water arising from boiler blowdown and water treatment backwash is recycled to the Incinerator Bottom Ash (IBA) quench. Water surplus to the requirements of quenching is discharged to the sewerage system. All plant areas are surfaced to the appropriate standards for the activities within those areas. All liquid tanks and drums whose emissions to water or land could cause pollution, are contained in adequate bunding constructed in line with industry best practice standards and sized to contain 110% of the contents of the largest tank or 25% of the total tonnage within the bund; whichever is the larger. Materials used for surfacing of process areas and bunds are resistant to the materials they may come into contact with. There are no direct discharges to groundwater from the facility. The solid residues produced by the EFW facility are Incinerator Bottom Ash (IBA) and Air Pollution Control (APC) residues. APC residues are hazardous and sent for treatment before landfill disposal. IBA is sent for separation and recycling of the metal content; with the remaining ash being used as a substitute aggregate. | K14: Include summary of key processes and procedures such as (but not limited to); waste reception, control rooms, grate, bed and boiler, energy & heat generation, cooling systems, residue management, emission controls, health and safety systems, maintenance

Sheet Operational Data
A1: =+'Cover Page'!B29 -> Annual Performance Report 2020 | D1: =+'Cover Page'!B33 -> Lincolnshire Energy from Waste Facility
A3: Operational Data | K3: Notes:
A4: Plant Size | B4: 190000 | D4: tonnes pa | E4: 49.7 | F4: MWth | G4: 13.1 | H4: MWe | K4: * - RDF to include SRF
A5: No. of combustion lines | B5: 1 | D5: No. of Turbines: | F5: 1 | K5: ** - CHP plants only
K6: 2020 updates include; heat in MWh, water in Litres, NCV in MJ/kg
A7: Waste types received | B7: Unit | C7: Q1 | D7: Q2 | E7: Q3 | F7: Q4 | G7: Year Total | H7: %
A8: Household / Local Authority | B8: tonnes | C8: 46368 | D8: 44718 | E8: 40934 | F8: 47411 | G8: =SUM(C8:F8) -> 179431 | H8: =IF(G8>0,G8/$G$15,"-") -> 0.9707841217 | K8: Availability Definition: 'the availability of a line is to be calculated by the number of hours the line reported Continuously Monitored emission levels to the Regulator through the calendar year divided by the total number of hours in that year. The overall plant availability is calculated as the Mean of all lines in the plant. For clarity this includes periods of Other Than Normal Operating Conditions (OTNOC) and abnormal operation.' Rationale: The primary function of an Energy from Waste facility is the disposal of waste. It follows therefore that the availability of a plant is determined by the period of time a facility spends undertaking this activity.
A9: Commercial & Industrial | C9: 1561 | D9: 1793 | E9: 743 | F9: 1303 | G9: =SUM(C9:F9) -> 5400 | H9: =IF(G9>0,G9/$G$15,"-") -> 0.02921587829
A10: Hazardous | C10: 0 | D10: 0 | E10: 0 | F10: 0 | G10: 0 | H10: =IF(G10>0,G10/$G$15,"-") -> -
A11: Clinical | C11: 0 | D11: 0 | E11: 0 | F11: 0 | G11: 0 | H11: =IF(G11>0,G11/$G$15,"-") -> -
A12: Waste wood (biomass) | C12: 0 | D12: 0 | E12: 0 | F12: 0 | G12: 0 | H12: =IF(G12>0,G12/$G$15,"-") -> -
A13: Refuse Derived Fuel * - H'hold/LA | C13: 0 | D13: 0 | E13: 0 | F13: 0 | G13: 0 | H13: =IF(G13>0,G13/$G$15,"-") -> -
A14: Refuse Derived Fuel * - C&I | C14: 0 | D14: 0 | E14: 0 | F14: 0 | G14: 0 | H14: =IF(G14>0,G14/$G$15,"-") -> -
A15: Total waste received | C15: =SUM(C8:C14) -> 47929 | D15: =SUM(D8:D14) -> 46511 | E15: =SUM(E8:E14) -> 41677 | F15: =SUM(F8:F14) -> 48714 | G15: =SUM(G8:G14) -> 184831 | H15: 1
A16: Rejected Waste | C16: 0 | D16: 0 | E16: 0 | F16: 0 | G16: =SUM(C16:F16) -> 0 | H16: =IF(G16>0,G16/$G$15,"-") -> -
A17: Unprocessed waste transferred out | C17: 0 | D17: 0 | E17: 0 | F17: 0 | G17: 0 | H17: =IF(G17>0,G17/$G$15,"-") -> -
A18: Total waste combusted | C18: =C15-SUM(C16:C17) -> 47929 | D18: =D15-SUM(D16:D17) -> 46511 | E18: 41677 | F18: 48714 | G18: =SUM(C18:F18) -> 184831 | H18: =IF(G18>0,G18/$G$15,"-") -> 1
A20: Energy Usage / Export | B20: Unit | C20: Q1 | D20: Q2 | E20: Q3 | F20: Q4 | G20: Year Total | H20: KWh/te
A21: Power Generated | B21: MWh | C21: 27433 | D21: 27715 | E21: 22731 | F21: 28011 | G21: =SUM(C21:F21) -> 105890 | H21: =IF(G21>0,G21*1000/$G$18,"-") -> 572.9017319
A22: Power Exported | C22: 25540 | D22: 25848 | E22: 20904 | F22: 26271 | G22: =SUM(C22:F22) -> 98563 | H22: =IF(G22>0,G22*1000/$G$18,"-") -> 533.2601133
A23: Power Used on site | C23: 3148 | D23: 3206 | E23: 2899 | F23: 3136 | G23: =SUM(C23:F23) -> 12389 | H23: =IF(G23>0,G23*1000/$G$18,"-") -> 67.02879928
A24: Power Imported | C24: 816 | D24: 339 | E24: 3132 | F24: 453 | G24: 4740 | H24: =IF(G24>0,G24*1000/$G$18,"-") -> 25.64504872
A25: Parasitic Load | B25: % | C25: =IF(C21>0,1-C22/(C21+C24),"-") -> 0.0958971999 | D25: =IF(D21>0,1-D22/(D21+D24),"-") -> 0.07863406288 | E25: =IF(E21>0,1-E22/(E21+E24),"-") -> 0.1917410973 | F25: =IF(F21>0,1-F22/(F21+F24),"-") -> 0.07704468803 | G25: =IF(G21>0,1-G22/(G21+G24),"-") -> 0.109075296
A26: Thermal Energy Produced ** | B26: MWh | C26: 0 | D26: 0 | E26: 0 | F26: 0 | G26: 0 | H26: =IF(G26>0,G26*1000/$G$18,"-") -> -
A27: Thermal Energy Exported ** | C27: 0 | D27: 0 | E27: 0 | F27: 0 | G27: =SUM(C27:F27) -> 0 | H27: =IF(G27>0,G27*1000/$G$18,"-") -> -
A28: R1 value | C28: 0.72 | G28: Operational
A30: Waste Disposal & Recovery | B30: Unit | C30: Q1 | D30: Q2 | E30: Q3 | F30: Q4 | G30: Year Total | H30: % inputs
A31: APC Residues - produced | B31: tonnes | C31: 1096 | D31: 1058 | E31: 838 | F31: 1116 | G31: =SUM(C31:F31) -> 4108 | H31: =IF(G31>0,G31/$G$18,"-") -> 0.02222570889
A32: IBA - produced | C32: 9368 | D32: 11218 | E32: 8668 | F32: 10331 | G32: 39585 | H32: =IF(G32>0,G32/$G$18,"-") -> 0.2141686189
A33: Metals recycling | C33: 5 | D33: 4 | E33: 2 | F33: 3 | G33: =SUM(C33:F33) -> 14 | H33: 7.574486964e-05
A35: Raw Material Usage | B35: Unit | C35: Q1 | D35: Q2 | E35: Q3 | F35: Q4 | G35: Year Total | H35: kg or Ltr /te
A36: Mains Water | B36: ltrs | C36: 2577 | D36: 6210 | E36: 4324 | F36: 3921 | G36: =SUM(C36:F36) -> 17032 | H36: =IF(G36>0,G36/$G$18,"-") -> 0.09214904426
A37: Other Water | B37: ltrs | C37: 0 | D37: 0 | E37: 0 | F37: 0 | G37: 0 | H37: =IF(G37>0,G37/$G$18,"-") -> -
A38: Ammonia | B38: kgs | C38: 103860 | D38: 116485 | E38: 89772 | F38: 95864 | G38: 405981 | H38: 2.196498423
A39: Activated Carbon | B39: kgs | C39: 11130 | D39: 11723 | E39: 9716 | F39: 11747 | G39: 44316 | H39: 0.2397649745
A40: Lime / hydrated lime | B40: kgs | C40: 423428 | D40: 364745 | E40: 256250 | F40: 418781 | G40: 1463204 | H40: 7.916442588
A41: Fuel oil | B41: ltrs | C41: 36479 | D41: 14212 | E41: 135357 | F41: 17756 | G41: 203804 | H41: 1.102650529
A42: Gas | B42: cf | C42: 0 | D42: 0 | E42: 0 | F42: 0 | G42: 0
A43: Other | C43: 0 | D43: 0 | E43: 0 | F43: 0 | G43: 0
A45: Summary | B45: Line/Unit | C45: Q1 | D45: Q2 | E45: Q3 | F45: Q4 | G45: Year Total | J45: Hrs in year
A46: Availability of waste combustion by line, hrs | B46: =+B5 -> 1 | C46: 2052 | D46: 2137 | E46: 1771 | F46: 2151 | G46: =SUM(C46:F46) -> 8111 | H46: =G46/J46 -> 0.9233834244 | J46: =8760+24 -> 8784
A47: Overall Availability, mean avg. of all lines, hrs | C47: 2052 | D47: 2137 | E47: 1771 | F47: 2151 | G47: =AVERAGE(G46:G46) -> 8111 | H47: =G47/J46 -> 0.9233834244
A48: Hours of turbine operations, hrs | B48: 1 | C48: 2040 | D48: 2132 | E48: 1698 | F48: 2145 | G48: 8015 | H48: =G48/J46 -> 0.9124544627
A49: Hours of heat / steam export | C49: 0 | D49: 0 | E49: 0 | F49: 0 | G49: 0 | H49: =IF(B49>0,#REF!/J46,"n/a") -> n/a
A50: Net Calorific Value of waste | B50: MJ/kg | C50: 8.55 | D50: 8.3 | E50: 8.38 | F50: 8.94 | H50: -
A51: Abnormal Events | B51: qty. | C51: 0 | D51: 0 | E51: 0 | F51: 0 | G51: 0 | H51: =IF(G51>0,"yes","no") -> no
A52: Abnormal operation | B52: hours | C52: 0 | D52: 0 | E52: 0 | F52: 0 | G52: 0 | H52: =+(G52)/J46 -> 0
A53: Permit Breaches | B53: qty. | C53: 0 | D53: 0 | E53: 0 | F53: 0 | G53: 0 | H53: =IF(G53>0,"yes","no") -> no

Sheet Operational Summary
A1: =+'Cover Page'!$B$29 -> Annual Performance Report 2020 | E1: =+'Cover Page'!$B$33 -> Lincolnshire Energy from Waste Facility
A3: Summary of Plant Operations and Maintenance during the reporting year | K3: Notes:
A5: During 2020 the site operated for 92.3% of the year with 184,831 tonnes incinerated against a permit limit of 190,000 tonnes with full compliance to all limits set within the permit. The site had a planned annual outage within October 2020 where routine maintenance that cannot be done while the plant is online was undertaken. Works were completed during the year to replace the filter bag house hoppers along with replacement of filter bags. A new Particulate analyser was also installed in 2020. Further optimisation of the dosing systems for efficient use of the reagents such as lime continued with the replacement of filter bags and the site continues to prepare for the new emission limits following the publishing of the revised Waste Incineration BREF in late 2019. The site generated 105,890 MWh of electricity during 2020, exporting 98,563 Mwh to the national grid. | K5: Include summary of key operational and/or maintenance activity undertaken in the year, such as any major component upgrades and/or replacements
A20: Summary of Residue Handling for the reporting year
A22: Incinerator Bottom Ash (IBA) is sampled 4 times per year for permit compliance purposes, in particular for Total Organic Content where the permit has a limit of 3%. Full compliance was achieved during 2020; no values were above 3% with an average value of 1.6% achieved. Additional testing of IBA is undertaken in order to correctly classify the IBA. 24 samples (2 per month) were taken in 2020 to assess for any hazardous content within the IBA. During 2020 all 24 sample results were returned confirming the classification of the IBA as non-hazardous. All metals within the IBA are sent along with the non-hazardous IBA to a third party company who operate a permitted facility dedicated to management of bottom ash. Metals are segregated and sent for recycling while the remaining incinerator bottom ash is used as a substitute aggregate material for use within the construction industry. Air Pollution Control Residues (APCr) formed from the cleaning of the flue gases are also analysed on a quarterly basis, albeit with no limits set within the permit. The APCr is tankered to a permitted treatment site where the material is used to neutralise highly acidic wastes before the resulting residue is sent for disposal. | K22: Include in here a summary of residue handling regimes and destinations

Sheet Perf. Form 1
A1: =+'Cover Page'!C39 -> 2020 | B1: Annual Reporting Performance Form 1
A3: =+'Cover Page'!B31 -> Permit EPR/FP3739FS | F3: Operator: | G3: FCC Environment (Lincolnshire) Limited
A4: Facility: | B4: =+'Cover Page'!B33:I33 -> Lincolnshire Energy from Waste Facility | F4: Form: | G4: Performance 1
A6: Reporting Period from: | D6: 2020-01-01 | F6: to: | G6: 2020-12-31
A8: =+A1 -> 2020 | B8: Annual Reporting of Waste Disposal and Recovery
A9: Waste Description | C9: Disposal Route(s) | E9: Disposal Tonnes | G9: Recovery Tonnes | I9: % / tonne of waste incinerated
A10: 1) Hazardous Wastes
A11: APC Residues | C11: D13 | E11: ='Operational Data'!G31 -> 4108 | I11: ='Operational Data'!H31 -> 0.02222570889
A12: IBA | I12: =IF((E12+G12)>0,(E12+G12)/#REF!, "-") -> -
I13: =IF((E13+G13)>0,(E13+G13)/#REF!, "-") -> -
A14: Total Hazardous Waste | E14: =SUM(E11:F13) -> 4108 | G14: =SUM(G11:H13) -> 0 | I14: =I11 -> 0.02222570889
A16: 2) Non-Hazardous Wastes
A17: IBA | C17: RO5 | G17: 39585.3 | I17: ='Operational Data'!H32 -> 0.2141686189
A18: Ferrous Metal | C18: R04 | G18: 14 | I18: ='Operational Data'!H33 -> 7.574486964e-05
I19: =IF((E19+G19)>0,(E19+G19)/#REF!, "-") -> -
A20: Total Non-Hazardous Waste | E20: =SUM(E17:F19) -> 0 | G20: =SUM(G17:H19) -> 39599.3 | I20: =I17 -> 0.2141686189
A21: TOTAL WASTE | E21: =+E20+E14 -> 4108 | G21: =+G20+G14 -> 39599.3 | I21: ='Perf. Form 1'!I14:J14+'Perf. Form 1'!I17:J17+'Perf. Form 1'!I18:J18 -> 0.2364700727
A23: Operator’s comments :
A24: Metal from the process is included with IBA as it leaves site where it is sent to a third party permitted facility where separation takes place to allow for the metal to be recycled.
A28: =+A1 -> 2020 | B28: Annual Reporting of Water and Other Raw Material Usage
A29: Raw Material | E29: Usage | G29: Unit | H29: Specific Usage | J29: Unit
A30: Mains Water | E30: ='Operational Data'!G36 -> 17032 | G30: m3 | H30: 0.09 | J30: m3/te
A31: Total Water | E31: ='Operational Data'!G36 -> 17032 | G31: m3 | H31: 0.09 | J31: m3/te
A32: Urea / Ammonia | E32: ='Operational Data'!G38 -> 405981 | G32: kg | H32: 2.2 | J32: kg/te
A33: Activated Carbon | E33: ='Operational Data'!G39 -> 44316 | G33: kg | H33: 0.24 | J33: kg/te
A34: Lime | E34: ='Operational Data'!G40 -> 1463204 | G34: kg | H34: 7.92 | J34: kg/te
A36: Operator’s comments :
A40: =+A28 -> 2020 | B40: Annual Reporting of other performance indicators
A41: Parameter | C41: Results by Line
C42: A1 | I42: Turbine 1
A43: Operating hours for the year, hours | C43: 8111 | I43: 8015
A44: Number of periods of abnormal operation, qty. | C44: 0
A45: Cumulative hours of abnormal operation for this year, hours | C45: 0
A47: Operator’s comments :
A52: Signed: | G52: Date: | H52: 2021-01-25

Sheet Energy Form 1
A1: =+'Cover Page'!C39 -> 2020 | B1: Annual Reporting of Energy Usage/Export
A3: =+'Cover Page'!B31 -> Permit EPR/FP3739FS | F3: Operator: | G3: ='Perf. Form 1'!G3:I3 -> FCC Environment (Lincolnshire) Limited
A5: Facility: | B5: =+'Cover Page'!B33:I33 -> Lincolnshire Energy from Waste Facility | F5: Form: | G5: Energy 1
A7: Reporting Period from: | D7: =+'Perf. Form 1'!D6:E6 -> 2020-01-01 | F7: to: | G7: =+'Perf. Form 1'!G6:H6 -> 2020-12-31
A9: Energy Source | D9: Energy Usage | F9: Unit | G9: Specific Usage (KWh/tonne incinerated
A10: Electricity Produced | D10: ='Operational Data'!G21 -> 105890 | F10: MWh | G10: 573
A11: Electricity Imported | D11: ='Operational Data'!G24 -> 4740 | F11: MWh | G11: 26
A12: Electricity Exported | D12: ='Operational Data'!G22 -> 98563 | F12: MWh | G12: 533
A13: Gas Oil | D13: 172.7 | F13: tonnes | G13: 0.00093
A14: Steam/hot water exported | D14: ='Operational Data'!G49 -> 0 | F14: GWh | G14: 0
A16: Operator’s comments :
A27: Signed: | G27: Date: | H27: 2021-01-25

Sheet Permit Compliance
A1: =+'Cover Page'!$B$29 -> Annual Performance Report 2020 | E1: =+'Cover Page'!$B$33 -> Lincolnshire Energy from Waste Facility
A3: Summary of Permit Compliance
A5: Compliance with permit limits for continuously monitored pollutants
A7: The plant met its emission limits as shown in the table below:
A8: Substance | C8: Percentage time compliant during operation | L8: Notes:
C9: Half-hourly limit | F9: Daily limit | L9: Report to 2 decimal places, i.e. xx.xx% Please provide a brief summary of each notification or non-compliance in the table (rather than just referring to notifications that were sent to the Regulator).
A10: Particulates | C10: 1 | F10: 1
A11: Oxides of nitrogen | C11: 1 | F11: 1
A12: Sulphur dioxide | C12: 1 | F12: 1
A13: Carbon monoxide | C13: 100% of 95% of 10-min averages | F13: 1
A14: Total organic carbon | C14: 1 | F14: 1
A15: Hydrogen chloride | C15: 1 | F15: 1
A17: Summary of any notifications or non-compliances under the permit
A18: Date | B18: Summary of notification or non-compliance [including Line/Reference] | E18: Reason | H18: Measures taken to prevent reoccurrence
A25: Summary of any complaints received and actions to taken to resolve them.
A26: Date | B26: Summary of complaint [including Line/Reference] | E26: Reason * | H26: Measures taken to prevent reoccurrence
A27: 2020-08-02 | B27: Record ID 127 Odour complaint 2.5km away from site | E27: Odour - unsubstantiated | H27: Non required
E29: * including whether substantiated by the operator or the EA

Sheet Improvements
A1: =+'Cover Page'!$B$29 -> Annual Performance Report 2020 | E1: =+'Cover Page'!$B$33 -> Lincolnshire Energy from Waste Facility
A3: Summary of Plant Improvements
A5: Summary of any efficiency improvements that have been completed within the year.
A6: Continued optimisation of reagent systems has taken place throughout 2020, while a new particulate analyser was also installed providing for ongoing reliable data and meeting the requirements of the new BREF due for full implementation by the end of 2023.
A14: Summary of any permit improvement conditions that have been completed within the year and the resulting environmental benefits.
A15: No improvement conditions were required during the year.
A22: Summary of any changes to the plant or operating techniques which required a variation to the permit and a summary of the resulting environmental impact.
A23: No changes were required during 2020
A29: Summary of any other improvements made to the plant or planned to be made and a summary of the resulting environmental benefits.
A30: An additional compressor was installed in 2020, providing additional security of compressed air for the facility while doing so in a more energy efficient manner.

Sheet Public Liasion
A1: =+'Cover Page'!$B$29 -> Annual Performance Report 2020 | E1: =+'Cover Page'!$B$33 -> Lincolnshire Energy from Waste Facility
A3: Details of Public & Stakeholder Liaison
A5: Summary of events held during the reporting year.
A6: Date | C6: Description
A7: 2020-10-30 | C7: Community liaison group meeting
A9: N/A | C9: Due to the Coronavirus pandemic no events were held during 2020. Information including emissions data is regularly published on the FCC Lincolnshire website
A12: List of events planned for next year
A13: Date | C13: Description
A14: TBC | C14: Events ae currently postponed due to the Coronavirus pandemic.
A19: If you wish to be involved in the public liaison programme, please contact 01522 814315 or visit https://lincolnshire.fccenvironment.co.uk/contact-us/

Sheet Residue Quality
A1: =+'Cover Page'!$B$29 -> Annual Performance Report 2020 | E1: =+'Cover Page'!$B$33 -> Lincolnshire Energy from Waste Facility
A3: Residue Quality Monitoring Requirements
A5: Summary of monitoring undertaken and compliance
A6: Monitoring of residues for permit compliance was undertaken with full compliance to the residue limit recorded. No specific events were recorded during 2020.
A8: All 24 samples taken and analysed as per the ESA protocol were returned demonstrating that the Incinerator Bottom Ash should be classified as non-hazardous.
A11: Commentary on any specific events
A12: Date & Event | C12: Description
A19: Residue Quality Monitoring Results
A20: Parameter (unit) | C20: Limit | D20: Normal Operation
D21: Bottom ash | F21: APC Residues
A22: Loss on Ignition (average %) | C22: <5%
A23: Total Organic Carbon (average %) | C23: <3% | D23: 0.016
A24: No. of Assessments Undertaken | C24: --- | D24: 24 | F24: 4
A25: No. of Hazardous Results | C25: --- | D25: 0
A27: Comments :
A28: NB. 24 results relate to assessment against the WM3 criteria, 4 assessments were undertaken for compliance purposes.

Sheet Water
A1: =+'Cover Page'!$B$29 -> Annual Performance Report 2020 | E1: =+'Cover Page'!$B$33 -> Lincolnshire Energy from Waste Facility
A3: Emissions to Water
A5: Summary of monitoring undertaken and compliance
A6: The permit requires a visual inspection of the surface water discharge point; water discharged from site is made up from rainwater rather than from any process activity. Any process water discharged would be through a trade effluent consent.
A8: During 2020 regular visual inspections of the discharge point were made, with a monthly inspection reported showing that there were no signs of oil or greases within the discharged water.
A10: Commentary on any specific events
A11: Date & Event | C11: Description
A17: Emissions to Water / Sewer
A18: Parameter | D18: Monitoring Frequency | G18: Limit | H18: Target | I18: Max. | J18: Average
A19: Oil or grease | D19: Monthly | G19: 0 | H19: 0 | I19: 0 | J19: 0

Sheet Air (periodic)
A1: =+'Cover Page'!$B$29 -> Annual Performance Report 2020 | E1: =+'Cover Page'!$B$33 -> Lincolnshire Energy from Waste Facility
A3: Emissions to Air (periodically monitored)
A5: Summary of monitoring undertaken, standards used and compliance | M5: Notes:
A6: Monitoring undertaken to the standards as prescribed in the permit and to MCERT requirements. | M6: Template may require adjustment for any bespoke monitoring requirements of permit.
A8: Results of emissions to air that are periodically monitored
A9: Substance | C9: Ref. Period | D9: Emission Limit Value | F9: Average | M9: User to add additional tables as necessary, depending on whether quarterly or bi-annual reporting is required for the compliance year
F10: A1
A11: Hydrogen fluoride | C11: 1 hr | D11: 2 mg/m3 | F11: 0.835
A12: Cd and Th and their compounds | C12: 6-8hrs | D12: 0.05 mg/m3 | F12: 0.001
A13: Hg and its compounds | C13: 6-8hrs | D13: 0.05 mg/m3 | F13: 0.00135
A14: Sb, As, Pb, Cr, Co, Cu, Mn, Ni, V and their compounds | C14: 6-8hrs | D14: 0.5 mg/m3 | F14: 0.095
A15: Dioxins & Furans (I-TEQ) | C15: 6-8hrs | D15: 0.1 ng/m3 | F15: 0.004
A16: PCBs (WHO-TEQ Humans / Mammals) | C16: 6-8hrs | D16: None set ng/m3 | F16: 0.00064
A17: PCBs (WHO-TEQ Fish) | C17: 6-8hrs | D17: None set ng/m3 | F17: 3e-05
A18: PCBs (WHO-TEQ Birds) | C18: 6-8hrs | D18: None set ng/m3 | F18: 0.002515
A19: Dioxins & Furans (WHO-TEQ Humans / Mammals) | C19: 6-8hrs | D19: None set ng/m3 | F19: 0.00425
A20: Dioxins & Furans (WHO-TEQ Fish) | C20: 6-8hrs | D20: None set ng/m3 | F20: 0.00445
A21: Dioxins & Furans (WHO-TEQ Birds) | C21: 6-8hrs | D21: None set ng/m3 | F21: 0.00585
A22: Anthanthrene | C22: 6-8hrs | D22: None set µg/m3 | F22: 0.00385
A23: Benzo(a)anthracene | C23: 6-8hrs | D23: None set µg/m3 | F23: 0.00335
A24: Benzo(a)pyrene | C24: 6-8hrs | D24: None set µg/m3 | F24: 0.0025
A25: Benzo(b)fluoranthene | C25: 6-8hrs | D25: None set µg/m3 | F25: 0.0025
A26: Benzo(b)naptho(2,1-d) thiophene | C26: 6-8hrs | D26: None set µg/m3 | F26: 0.00315
A27: Benzo(c)phenanthrene | C27: 6-8hrs | D27: None set µg/m3 | F27: 0.0035
A28: Benzo(ghi)perylene | C28: 6-8hrs | D28: None set µg/m3 | F28: 0.00335
A29: Benzo(k)fluoranthene | C29: 6-8hrs | D29: None set µg/m3 | F29: 0.01185
A30: Cholanthrene | C30: 6-8hrs | D30: None set µg/m3 | F30: 0.00315
A31: Chrysene | C31: 6-8hrs | D31: None set µg/m3 | F31: 0.00685
A32: Cyclopenta(cd)pyrene | C32: 6-8hrs | D32: None set µg/m3 | F32: 0.0035
A33: Dibenzo(ai)pyrene | C33: 6-8hrs | D33: None set µg/m3 | F33: 0.00285
A34: Dibenzo(ah)anthracene | C34: 6-8hrs | D34: None set µg/m3 | F34: 0.00375
A35: Fluoranthene | C35: 6-8hrs | D35: None set µg/m3 | F35: 0.025
A36: Indeno(123-cd) pyrene | C36: 6-8hrs | D36: None set µg/m3 | F36: 0.00435
A37: Naphthalene | C37: 6-8hrs | D37: None set µg/m3 | F37: 0.105
A38: Nitrous Oxide (N20) | C38: 1hr | D38: None set mg/m3 | F38: 1.81
A39: Comments :

Sheet Air (CEMS)
A1: =+'Cover Page'!$B$29 -> Annual Performance Report 2020 | E1: =+'Cover Page'!$B$33 -> Lincolnshire Energy from Waste Facility
A3: Emissions to Air (continuously monitored)
L4: Notes:
A5: Summary of monitoring undertaken, standards used and compliance | L5: Template may require adjustment for any bespoke monitoring requirements of permit
A6: Continuous monitoring is undertaken in line with the permit requirements and the BS EN 14181 Standard | L6: Report to 2 decimal places, i.e. xx.xx%
A9: Results of emissions to air that are continuously monitored (maximum and average values for each line)
A10: Substance | B10: Reference Period | C10: Emission Limit Value | D10: A1
D11: Max. | E11: Avg.
A12: Oxides of nitrogen | B12: Daily mean | C12: 200 mg/m3 | D12: =NOx!O19 -> 153.5 | E12: =NOx!N19 -> 143.35
B13: ½ hourly mean | C13: 400 mg/m3 | D13: =NOx!M19 -> 252.1 | E13: =NOx!L19 -> 143.4
A14: Particulates | B14: Daily mean | C14: 10 mg/m3 | D14: =Particulates!O19 -> 2.1 | E14: =Particulates!N19 -> 0.05833333333
B15: ½ hourly mean | C15: 30 mg/m3 | D15: =Particulates!M19 -> 12.3 | E15: =Particulates!L19 -> 0.075
A16: Total Organic Carbon | B16: Daily mean | C16: 10 mg/m3 | D16: =TOC!O19 -> 2 | E16: =TOC!N19 -> 0.375
B17: ½ hourly mean | C17: 20 mg/m3 | D17: =TOC!M19 -> 13.1 | E17: =Particulates!L19 -> 0.075
A18: Hydrogen chloride | B18: Daily mean | C18: 10 mg/m3 | D18: =HCl!O19 -> 7.8 | E18: =HCl!N19 -> 5.033333333
B19: ½ hourly mean | C19: 60 mg/m3 | D19: =HCl!M19 -> 26.3 | E19: =HCl!L19 -> 5.05
A20: Sulphur dioxide | B20: Daily mean | C20: 50 mg/m3 | D20: ='SO2'!O19 -> 49.5 | E20: ='SO2'!N19 -> 38.64166667
B21: ½ hourly mean | C21: 200 mg/m3 | D21: ='SO2'!M19 -> 133.2 | E21: ='SO2'!L19 -> 38.35833333
A22: Carbon monoxide | B22: Daily mean | C22: 50 mg/m3 | D22: ='CO 95% 10 min'!Q19 -> 15.5 | E22: ='CO 95% 10 min'!P19 -> 2.375
B23: 95%ile 10-min avg * | C23: 150 mg/m3 * | D23: ='CO 95% 10 min'!M19 -> 19.75 | E23: ='CO 95% 10 min'!N19 -> 2.433333333
A24: Ammonia | B24: Daily mean | C24: No limit set | D24: ='NH3'!O19 -> 2.5 | E24: ='NH3'!N19 -> 1.291666667
A26: Comments :

Sheet HCl
A1: =+'Cover Page'!$B$29 -> Annual Performance Report 2020 | E1: =+'Cover Page'!$B$33 -> Lincolnshire Energy from Waste Facility
A3: Monitoring of Hydrogen Chloride emissions | D3: Whole Installation | G3: See Notes in Cell Q3 | J3: =+A3 -> Monitoring of Hydrogen Chloride emissions | N3: Per Combustion Line | Q3: Notes:
Q4: User to add logic to complete Whole installation, Table A5:G18. From the data in Per Combustion Line, Table J6:O79, subject to No. of lines installed
A5: mg/Nm3 | B5: 1/2 Hourly Reference Periods | E5: Daily Reference Periods
A6: =+'Cover Page'!C39 -> 2020 | B6: 1/2 hourly HCl ELV | C6: Monthly 1/2 hourly mean | D6: Highest 1/2 hourly maximum | E6: Daily HCl ELV | F6: Monthly daily mean | G6: Highest daily maximum | J6: =+A6 -> 2020 | K6: mg/Nm3 | L6: Monthly 1/2 hourly mean | M6: Monthly 1/2 hourly maximum | N6: Monthly daily mean | O6: Monthly daily maximum
A7: Jan | B7: 60 | C7: =L7 -> 6.1 | D7: =M7 -> 10.4 | E7: 10 | F7: =N7 -> 6 | G7: =O7 -> 7 | J7: A1 | K7: Jan | L7: 6.1 | M7: 10.4 | N7: 6 | O7: 7
A8: Feb | B8: 60 | C8: =L8 -> 5.9 | D8: =M8 -> 10.6 | E8: 10 | F8: =N8 -> 5.9 | G8: =O8 -> 7 | K8: Feb | L8: 5.9 | M8: 10.6 | N8: 5.9 | O8: 7
A9: Mar | B9: 60 | C9: 3.2 | D9: 23.6 | E9: 10 | F9: 3.1 | G9: 5.8 | K9: Mar | L9: 3.2 | M9: 23.6 | N9: 3.1 | O9: 5.8 | Q9: Whole Installation table A5:G18:
A10: Apr | B10: 60 | C10: 4.6 | D10: 8.2 | E10: 10 | F10: 4.6 | G10: 6 | K10: Apr | L10: 4.6 | M10: 8.2 | N10: 4.6 | O10: 6 | Q10: Mean: for 1/2 hourly and daily periods calculate mean of values across all operational combustion lines for the month
A11: May | B11: 60 | C11: 5.3 | D11: 26.3 | E11: 10 | F11: 5.2 | G11: 7.4 | K11: May | L11: 5.3 | M11: 26.3 | N11: 5.2 | O11: 7.4
A12: Jun | B12: 60 | C12: 6.5 | D12: 13.2 | E12: 10 | F12: 6.5 | G12: 7.8 | K12: Jun | L12: 6.5 | M12: 13.2 | N12: 6.5 | O12: 7.8
A13: Jul | B13: 60 | C13: 5.4 | D13: 11.3 | E13: 10 | F13: 5.4 | G13: 7.3 | K13: Jul | L13: 5.4 | M13: 11.3 | N13: 5.4 | O13: 7.3 | Q13: Maximum: for 1/2 hourly and daily periods use the highest value across all operational combustion lines for the month
A14: Aug | B14: 60 | C14: 3.5 | D14: 11.3 | E14: 10 | F14: 3.6 | G14: 6.8 | K14: Aug | L14: 3.5 | M14: 11.3 | N14: 3.6 | O14: 6.8
A15: Sep | B15: 60 | C15: 6.2 | D15: 16.4 | E15: 10 | F15: 6.2 | G15: 7.3 | K15: Sep | L15: 6.2 | M15: 16.4 | N15: 6.2 | O15: 7.3
A16: Oct | B16: 60 | C16: 5.6 | D16: 16.3 | E16: 10 | F16: 5.6 | G16: 7.3 | K16: Oct | L16: 5.6 | M16: 16.3 | N16: 5.6 | O16: 7.3
A17: Nov | B17: 60 | C17: 5 | D17: 10.1 | E17: 10 | F17: 5.1 | G17: 7.4 | K17: Nov | L17: 5 | M17: 10.1 | N17: 5.1 | O17: 7.4
A18: Dec | B18: 60 | C18: 3.3 | D18: 7 | E18: 10 | F18: 3.2 | G18: 4.2 | K18: Dec | L18: 3.3 | M18: 7 | N18: 3.2 | O18: 4.2
K19: Annual | L19: =AVERAGE(L7:L18) -> 5.05 | M19: =MAX(M7:M18) -> 26.3 | N19: =AVERAGE(N7:N18) -> 5.033333333 | O19: =MAX(O7:O18) -> 7.8
J21: =+A6 -> 2020 | K21: mg/Nm3 | L21: Monthly 1/2 hourly mean | M21: Monthly 1/2 hourly maximum | N21: Monthly daily mean | O21: Monthly daily maximum
J22: A2 | K22: Jan
K23: Feb
K24: Mar
K25: Apr
K26: May
K27: Jun
K28: Jul
K29: Aug
K30: Sep
K31: Oct
K32: Nov
K33: Dec
K34: Annual | L34: =AVERAGE(L22:L33) ->  | M34: =MAX(M22:M33) -> 0 | N34: =AVERAGE(N22:N33) ->  | O34: =MAX(O22:O33) -> 0
J36: =+A6 -> 2020 | K36: mg/Nm3 | L36: Monthly 1/2 hourly mean | M36: Monthly 1/2 hourly maximum | N36: Monthly daily mean | O36: Monthly daily maximum
J37: A3 | K37: Jan
K38: Feb
K39: Mar
K40: Apr
K41: May
K42: Jun
K43: Jul
K44: Aug
K45: Sep
K46: Oct
K47: Nov
A48: Comments : | K48: Dec
K49: Annual | L49: =AVERAGE(L37:L48) ->  | M49: =MAX(M37:M48) -> 0 | N49: =AVERAGE(N37:N48) ->  | O49: =MAX(O37:O48) -> 0
J51: =+A6 -> 2020 | K51: mg/Nm3 | L51: Monthly 1/2 hourly mean | M51: Monthly 1/2 hourly maximum | N51: Monthly daily mean | O51: Monthly daily maximum
J52: A4 | K52: Jan
K53: Feb
K54: Mar
K55: Apr
K56: May
K57: Jun
K58: Jul
K59: Aug
K60: Sep
K61: Oct
K62: Nov
K63: Dec
K64: Annual | L64: =AVERAGE(L52:L63) ->  | M64: =MAX(M52:M63) -> 0 | N64: =AVERAGE(N52:N63) ->  | O64: =MAX(O52:O63) -> 0
J66: =+A6 -> 2020 | K66: mg/Nm3 | L66: Monthly 1/2 hourly mean | M66: Monthly 1/2 hourly maximum | N66: Monthly daily mean | O66: Monthly daily maximum
J67: A5 | K67: Jan
K68: Feb
K69: Mar
K70: Apr
K71: May
K72: Jun
K73: Jul
K74: Aug
K75: Sep
K76: Oct
K77: Nov
K78: Dec
K79: Annual | L79: =AVERAGE(L67:L78) ->  | M79: =MAX(M67:M78) -> 0 | N79: =AVERAGE(N67:N78) ->  | O79: =MAX(O67:O78) -> 0

Sheet SO2
A1: =+'Cover Page'!$B$29 -> Annual Performance Report 2020 | E1: =+'Cover Page'!$B$33 -> Lincolnshire Energy from Waste Facility
A3: Monitoring of Sulphur dioxide emissions | D3: Whole Installation | G3: See Notes in Cell Q3 | J3: =+A3 -> Monitoring of Sulphur dioxide emissions | N3: Per Combustion Line | Q3: Notes:
Q4: User to add logic to complete Whole installation, Table A5:G18. From the data in Per Combustion Line, Table J6:O79, subject to No. of lines installed
A5: mg/Nm3 | B5: 1/2 Hourly Reference Periods | E5: Daily Reference Periods
A6: =+'Cover Page'!C39 -> 2020 | B6: 1/2 hourly SO2 ELV | C6: Monthly 1/2 hourly mean | D6: Highest 1/2 hourly maximum | E6: Daily SO2 ELV | F6: Monthly daily mean | G6: Highest daily maximum | J6: =+A6 -> 2020 | K6: mg/Nm3 | L6: Monthly 1/2 hourly mean | M6: Monthly 1/2 hourly maximum | N6: Monthly daily mean | O6: Monthly daily maximum
A7: Jan | B7: 200 | C7: =L7 -> 38.2 | D7: =M7 -> 88.5 | E7: 50 | F7: =N7 -> 38.2 | G7: =O7 -> 46 | J7: A1 | K7: Jan | L7: 38.2 | M7: 88.5 | N7: 38.2 | O7: 46
A8: Feb | B8: 200 | C8: =L8 -> 38.2 | D8: =M8 -> 81.7 | E8: 50 | F8: =N8 -> 38.2 | G8: =O8 -> 47.3 | K8: Feb | L8: 38.2 | M8: 81.7 | N8: 38.2 | O8: 47.3
A9: Mar | B9: 200 | C9: 43.5 | D9: 116.4 | E9: 50 | F9: 43.7 | G9: 49.5 | K9: Mar | L9: 43.5 | M9: 116.4 | N9: 43.7 | O9: 49.5 | Q9: Whole Installation table A5:G18:
A10: Apr | B10: 200 | C10: 38.5 | D10: 78.2 | E10: 50 | F10: 38.4 | G10: 46.9 | K10: Apr | L10: 38.5 | M10: 78.2 | N10: 38.4 | O10: 46.9 | Q10: Mean: for 1/2 hourly and daily periods calculate mean of values across all operational combustion lines for the month
A11: May | B11: 200 | C11: 38.1 | D11: 133.2 | E11: 50 | F11: 38.1 | G11: 44.5 | K11: May | L11: 38.1 | M11: 133.2 | N11: 38.1 | O11: 44.5
A12: Jun | B12: 200 | C12: 29.2 | D12: 77.4 | E12: 50 | F12: 29.1 | G12: 41.1 | K12: Jun | L12: 29.2 | M12: 77.4 | N12: 29.1 | O12: 41.1
A13: Jul | B13: 200 | C13: 27.2 | D13: 78.7 | E13: 50 | F13: 27.8 | G13: 40.7 | K13: Jul | L13: 27.2 | M13: 78.7 | N13: 27.8 | O13: 40.7 | Q13: Maximum: for 1/2 hourly and daily periods use the highest value across all operational combustion lines for the month
A14: Aug | B14: 200 | C14: 38.8 | D14: 82.5 | E14: 50 | F14: 41.9 | G14: 48.6 | K14: Aug | L14: 38.8 | M14: 82.5 | N14: 41.9 | O14: 48.6
A15: Sep | B15: 200 | C15: 38.7 | D15: 109.2 | E15: 50 | F15: 38.7 | G15: 44.8 | K15: Sep | L15: 38.7 | M15: 109.2 | N15: 38.7 | O15: 44.8
A16: Oct | B16: 200 | C16: 40.6 | D16: 95.7 | E16: 50 | F16: 40.5 | G16: 46.2 | K16: Oct | L16: 40.6 | M16: 95.7 | N16: 40.5 | O16: 46.2
A17: Nov | B17: 200 | C17: 44.2 | D17: 104.9 | E17: 50 | F17: 44.1 | G17: 48.8 | K17: Nov | L17: 44.2 | M17: 104.9 | N17: 44.1 | O17: 48.8
A18: Dec | B18: 200 | C18: 45.1 | D18: 91.1 | E18: 50 | F18: 45 | G18: 49 | K18: Dec | L18: 45.1 | M18: 91.1 | N18: 45 | O18: 49
K19: Annual | L19: =AVERAGE(L7:L18) -> 38.35833333 | M19: =MAX(M7:M18) -> 133.2 | N19: =AVERAGE(N7:N18) -> 38.64166667 | O19: =MAX(O7:O18) -> 49.5
J21: =+A6 -> 2020 | K21: mg/Nm3 | L21: Monthly 1/2 hourly mean | M21: Monthly 1/2 hourly maximum | N21: Monthly daily mean | O21: Monthly daily maximum
J22: A2 | K22: Jan
K23: Feb
K24: Mar
K25: Apr
K26: May
K27: Jun
K28: Jul
K29: Aug
K30: Sep
K31: Oct
K32: Nov
K33: Dec
K34: Annual | L34: =AVERAGE(L22:L33) ->  | M34: =MAX(M22:M33) -> 0 | N34: =AVERAGE(N22:N33) ->  | O34: =MAX(O22:O33) -> 0
J36: =+A6 -> 2020 | K36: mg/Nm3 | L36: Monthly 1/2 hourly mean | M36: Monthly 1/2 hourly maximum | N36: Monthly daily mean | O36: Monthly daily maximum
J37: A3 | K37: Jan
K38: Feb
K39: Mar
K40: Apr
K41: May
K42: Jun
K43: Jul
K44: Aug
K45: Sep
K46: Oct
K47: Nov
A48: Comments : | K48: Dec
K49: Annual | L49: =AVERAGE(L37:L48) ->  | M49: =MAX(M37:M48) -> 0 | N49: =AVERAGE(N37:N48) ->  | O49: =MAX(O37:O48) -> 0
J51: =+A6 -> 2020 | K51: mg/Nm3 | L51: Monthly 1/2 hourly mean | M51: Monthly 1/2 hourly maximum | N51: Monthly daily mean | O51: Monthly daily maximum
J52: A4 | K52: Jan
K53: Feb
K54: Mar
K55: Apr
K56: May
K57: Jun
K58: Jul
K59: Aug
K60: Sep
K61: Oct
K62: Nov
K63: Dec
K64: Annual | L64: =AVERAGE(L52:L63) ->  | M64: =MAX(M52:M63) -> 0 | N64: =AVERAGE(N52:N63) ->  | O64: =MAX(O52:O63) -> 0
J66: =+A6 -> 2020 | K66: mg/Nm3 | L66: Monthly 1/2 hourly mean | M66: Monthly 1/2 hourly maximum | N66: Monthly daily mean | O66: Monthly daily maximum
J67: A5 | K67: Jan
K68: Feb
K69: Mar
K70: Apr
K71: May
K72: Jun
K73: Jul
K74: Aug
K75: Sep
K76: Oct
K77: Nov
K78: Dec
K79: Annual | L79: =AVERAGE(L67:L78) ->  | M79: =MAX(M67:M78) -> 0 | N79: =AVERAGE(N67:N78) ->  | O79: =MAX(O67:O78) -> 0

Sheet NOx
A1: =+'Cover Page'!$B$29 -> Annual Performance Report 2020 | E1: =+'Cover Page'!$B$33 -> Lincolnshire Energy from Waste Facility
A3: Monitoring of Oxides of Nitrogen emissions | D3: Whole Installation | G3: See Notes in Cell Q3 | J3: =+A3 -> Monitoring of Oxides of Nitrogen emissions | N3: Per Combustion Line | Q3: Notes:
Q4: User to add logic to complete Whole installation, Table A5:G18. From the data in Per Combustion Line, Table J6:O79, subject to No. of lines installed
A5: mg/Nm3 | B5: 1/2 Hourly Reference Periods | E5: Daily Reference Periods
A6: =+'Cover Page'!C39 -> 2020 | B6: 1/2 hourly NOx ELV | C6: Monthly 1/2 hourly mean | D6: Highest 1/2 hourly maximum | E6: Daily NOx ELV | F6: Monthly daily mean | G6: Highest daily maximum | J6: =+A6 -> 2020 | K6: mg/Nm3 | L6: Monthly 1/2 hourly mean | M6: Monthly 1/2 hourly maximum | N6: Monthly daily mean | O6: Monthly daily maximum
A7: Jan | B7: 400 | C7: =L7 -> 135.9 | D7: =M7 -> 161.5 | E7: 200 | F7: =N7 -> 135.9 | G7: =O7 -> 136.5 | J7: A1 | K7: Jan | L7: 135.9 | M7: 161.5 | N7: 135.9 | O7: 136.5
A8: Feb | B8: 400 | C8: =L8 -> 135.9 | D8: =M8 -> 159.6 | E8: 200 | F8: =N8 -> 135.9 | G8: =O8 -> 136.4 | K8: Feb | L8: 135.9 | M8: 159.6 | N8: 135.9 | O8: 136.4
A9: Mar | B9: 400 | C9: 136.1 | D9: 220.4 | E9: 200 | F9: 135.8 | G9: 136.1 | K9: Mar | L9: 136.1 | M9: 220.4 | N9: 135.8 | O9: 136.1 | Q9: Whole Installation table A5:G18:
A10: Apr | B10: 400 | C10: 136 | D10: 186 | E10: 200 | F10: 136 | G10: 137.1 | K10: Apr | L10: 136 | M10: 186 | N10: 136 | O10: 137.1 | Q10: Mean: for 1/2 hourly and daily periods calculate mean of values across all operational combustion lines for the month
A11: May | B11: 400 | C11: 136 | D11: 189.9 | E11: 200 | F11: 136 | G11: 137.2 | K11: May | L11: 136 | M11: 189.9 | N11: 136 | O11: 137.2
A12: Jun | B12: 400 | C12: 135.9 | D12: 148.5 | E12: 200 | F12: 135.9 | G12: 136.2 | K12: Jun | L12: 135.9 | M12: 148.5 | N12: 135.9 | O12: 136.2
A13: Jul | B13: 400 | C13: 145.7 | D13: 252.1 | E13: 200 | F13: 145.9 | G13: 153.5 | K13: Jul | L13: 145.7 | M13: 252.1 | N13: 145.9 | O13: 153.5 | Q13: Maximum: for 1/2 hourly and daily periods use the highest value across all operational combustion lines for the month
A14: Aug | B14: 400 | C14: 152.1 | D14: 242.4 | E14: 200 | F14: 151.8 | G14: 152.1 | K14: Aug | L14: 152.1 | M14: 242.4 | N14: 151.8 | O14: 152.1
A15: Sep | B15: 400 | C15: 152 | D15: 163.7 | E15: 200 | F15: 151.9 | G15: 152.1 | K15: Sep | L15: 152 | M15: 163.7 | N15: 151.9 | O15: 152.1
A16: Oct | B16: 400 | C16: 151.9 | D16: 167.8 | E16: 200 | F16: 151.8 | G16: 152.1 | K16: Oct | L16: 151.9 | M16: 167.8 | N16: 151.8 | O16: 152.1
A17: Nov | B17: 400 | C17: 151.7 | D17: 213.1 | E17: 200 | F17: 151.7 | G17: 152.1 | K17: Nov | L17: 151.7 | M17: 213.1 | N17: 151.7 | O17: 152.1
A18: Dec | B18: 400 | C18: 151.6 | D18: 164.3 | E18: 200 | F18: 151.6 | G18: 152 | K18: Dec | L18: 151.6 | M18: 164.3 | N18: 151.6 | O18: 152
K19: Annual | L19: =AVERAGE(L7:L18) -> 143.4 | M19: =MAX(M7:M18) -> 252.1 | N19: =AVERAGE(N7:N18) -> 143.35 | O19: =MAX(O7:O18) -> 153.5
J21: =+A6 -> 2020 | K21: mg/Nm3 | L21: Monthly 1/2 hourly mean | M21: Monthly 1/2 hourly maximum | N21: Monthly daily mean | O21: Monthly daily maximum
J22: A2 | K22: Jan
K23: Feb
K24: Mar
K25: Apr
K26: May
K27: Jun
K28: Jul
K29: Aug
K30: Sep
K31: Oct
K32: Nov
K33: Dec
K34: Annual | L34: =AVERAGE(L22:L33) ->  | M34: =MAX(M22:M33) -> 0 | N34: =AVERAGE(N22:N33) ->  | O34: =MAX(O22:O33) -> 0
J36: =+A6 -> 2020 | K36: mg/Nm3 | L36: Monthly 1/2 hourly mean | M36: Monthly 1/2 hourly maximum | N36: Monthly daily mean | O36: Monthly daily maximum
J37: A3 | K37: Jan
K38: Feb
K39: Mar
K40: Apr
K41: May
K42: Jun
K43: Jul
K44: Aug
K45: Sep
K46: Oct
K47: Nov
A48: Comments : | K48: Dec
K49: Annual | L49: =AVERAGE(L37:L48) ->  | M49: =MAX(M37:M48) -> 0 | N49: =AVERAGE(N37:N48) ->  | O49: =MAX(O37:O48) -> 0
J51: =+A6 -> 2020 | K51: mg/Nm3 | L51: Monthly 1/2 hourly mean | M51: Monthly 1/2 hourly maximum | N51: Monthly daily mean | O51: Monthly daily maximum
J52: A4 | K52: Jan
K53: Feb
K54: Mar
K55: Apr
K56: May
K57: Jun
K58: Jul
K59: Aug
K60: Sep
K61: Oct
K62: Nov
K63: Dec
K64: Annual | L64: =AVERAGE(L52:L63) ->  | M64: =MAX(M52:M63) -> 0 | N64: =AVERAGE(N52:N63) ->  | O64: =MAX(O52:O63) -> 0
J66: =+A6 -> 2020 | K66: mg/Nm3 | L66: Monthly 1/2 hourly mean | M66: Monthly 1/2 hourly maximum | N66: Monthly daily mean | O66: Monthly daily maximum
J67: A5 | K67: Jan
K68: Feb
K69: Mar
K70: Apr
K71: May
K72: Jun
K73: Jul
K74: Aug
K75: Sep
K76: Oct
K77: Nov
K78: Dec
K79: Annual | L79: =AVERAGE(L67:L78) ->  | M79: =MAX(M67:M78) -> 0 | N79: =AVERAGE(N67:N78) ->  | O79: =MAX(O67:O78) -> 0

Sheet TOC
A1: =+'Cover Page'!$B$29 -> Annual Performance Report 2020 | E1: =+'Cover Page'!$B$33 -> Lincolnshire Energy from Waste Facility
A3: Monitoring of Total organic carbon emissions | D3: Whole Installation | G3: See Notes in Cell Q3 | J3: =+A3 -> Monitoring of Total organic carbon emissions | N3: Per Combustion Line | Q3: Notes:
Q4: User to add logic to complete Whole installation, Table A5:G18. From the data in Per Combustion Line, Table J6:O79, subject to No. of lines installed
A5: mg/Nm3 | B5: 1/2 Hourly Reference Periods | E5: Daily Reference Periods
A6: =+'Cover Page'!C39 -> 2020 | B6: 1/2 hourly TOC ELV | C6: Monthly 1/2 hourly mean | D6: Highest 1/2 hourly maximum | E6: Daily TOC ELV | F6: Monthly daily mean | G6: Highest daily maximum | J6: =+A6 -> 2020 | K6: mg/Nm3 | L6: Monthly 1/2 hourly mean | M6: Monthly 1/2 hourly maximum | N6: Monthly daily mean | O6: Monthly daily maximum
A7: Jan | B7: 20 | C7: =L7 -> 0.2 | D7: =M7 -> 7.7 | E7: 10 | F7: =N7 -> 0.2 | G7: =O7 -> 0.5 | J7: A1 | K7: Jan | L7: 0.2 | M7: 7.7 | N7: 0.2 | O7: 0.5
A8: Feb | B8: 20 | C8: =L8 -> 0.2 | D8: =M8 -> 6.6 | E8: 10 | F8: =N8 -> 0.2 | G8: =O8 -> 0.3 | K8: Feb | L8: 0.2 | M8: 6.6 | N8: 0.2 | O8: 0.3
A9: Mar | B9: 20 | C9: 0.3 | D9: 9 | E9: 10 | F9: 0.2 | G9: 0.9 | K9: Mar | L9: 0.3 | M9: 9 | N9: 0.2 | O9: 0.9 | Q9: Whole Installation table A5:G18:
A10: Apr | B10: 20 | C10: 0.1 | D10: 7.1 | E10: 10 | F10: 0.1 | G10: 0.3 | K10: Apr | L10: 0.1 | M10: 7.1 | N10: 0.1 | O10: 0.3 | Q10: Mean: for 1/2 hourly and daily periods calculate mean of values across all operational combustion lines for the month
A11: May | B11: 20 | C11: 0.2 | D11: 13.1 | E11: 10 | F11: 0.2 | G11: 0.7 | K11: May | L11: 0.2 | M11: 13.1 | N11: 0.2 | O11: 0.7
A12: Jun | B12: 20 | C12: 0.1 | D12: 12.5 | E12: 10 | F12: 0.1 | G12: 0.4 | K12: Jun | L12: 0.1 | M12: 12.5 | N12: 0.1 | O12: 0.4
A13: Jul | B13: 20 | C13: 0.6 | D13: 3.5 | E13: 10 | F13: 0.5 | G13: 1 | K13: Jul | L13: 0.6 | M13: 3.5 | N13: 0.5 | O13: 1 | Q13: Maximum: for 1/2 hourly and daily periods use the highest value across all operational combustion lines for the month
A14: Aug | B14: 20 | C14: 0.9 | D14: 10.3 | E14: 10 | F14: 0.7 | G14: 0.9 | K14: Aug | L14: 0.9 | M14: 10.3 | N14: 0.7 | O14: 0.9
A15: Sep | B15: 20 | C15: 0.7 | D15: 2 | E15: 10 | F15: 0.6 | G15: 0.7 | K15: Sep | L15: 0.7 | M15: 2 | N15: 0.6 | O15: 0.7
A16: Oct | B16: 20 | C16: 0.9 | D16: 6.5 | E16: 10 | F16: 0.8 | G16: 2 | K16: Oct | L16: 0.9 | M16: 6.5 | N16: 0.8 | O16: 2
A17: Nov | B17: 20 | C17: 0.5 | D17: 11.1 | E17: 10 | F17: 0.3 | G17: 1 | K17: Nov | L17: 0.5 | M17: 11.1 | N17: 0.3 | O17: 1
A18: Dec | B18: 20 | C18: 0.6 | D18: 3.7 | E18: 10 | F18: 0.6 | G18: 1.2 | K18: Dec | L18: 0.6 | M18: 3.7 | N18: 0.6 | O18: 1.2
K19: Annual | L19: =AVERAGE(L7:L18) -> 0.4416666667 | M19: =MAX(M7:M18) -> 13.1 | N19: =AVERAGE(N7:N18) -> 0.375 | O19: =MAX(O7:O18) -> 2
J21: =+A6 -> 2020 | K21: mg/Nm3 | L21: Monthly 1/2 hourly mean | M21: Monthly 1/2 hourly maximum | N21: Monthly daily mean | O21: Monthly daily maximum
J22: A2 | K22: Jan
K23: Feb
K24: Mar
K25: Apr
K26: May
K27: Jun
K28: Jul
K29: Aug
K30: Sep
K31: Oct
K32: Nov
K33: Dec
K34: Annual | L34: =AVERAGE(L22:L33) ->  | M34: =MAX(M22:M33) -> 0 | N34: =AVERAGE(N22:N33) ->  | O34: =MAX(O22:O33) -> 0
J36: =+A6 -> 2020 | K36: mg/Nm3 | L36: Monthly 1/2 hourly mean | M36: Monthly 1/2 hourly maximum | N36: Monthly daily mean | O36: Monthly daily maximum
J37: A3 | K37: Jan
K38: Feb
K39: Mar
K40: Apr
K41: May
K42: Jun
K43: Jul
K44: Aug
K45: Sep
K46: Oct
K47: Nov
A48: Comments : | K48: Dec
K49: Annual | L49: =AVERAGE(L37:L48) ->  | M49: =MAX(M37:M48) -> 0 | N49: =AVERAGE(N37:N48) ->  | O49: =MAX(O37:O48) -> 0
J51: =+A6 -> 2020 | K51: mg/Nm3 | L51: Monthly 1/2 hourly mean | M51: Monthly 1/2 hourly maximum | N51: Monthly daily mean | O51: Monthly daily maximum
J52: A4 | K52: Jan
K53: Feb
K54: Mar
K55: Apr
K56: May
K57: Jun
K58: Jul
K59: Aug
K60: Sep
K61: Oct
K62: Nov
K63: Dec
K64: Annual | L64: =AVERAGE(L52:L63) ->  | M64: =MAX(M52:M63) -> 0 | N64: =AVERAGE(N52:N63) ->  | O64: =MAX(O52:O63) -> 0
J66: =+A6 -> 2020 | K66: mg/Nm3 | L66: Monthly 1/2 hourly mean | M66: Monthly 1/2 hourly maximum | N66: Monthly daily mean | O66: Monthly daily maximum
J67: A5 | K67: Jan
K68: Feb
K69: Mar
K70: Apr
K71: May
K72: Jun
K73: Jul
K74: Aug
K75: Sep
K76: Oct
K77: Nov
K78: Dec
K79: Annual | L79: =AVERAGE(L67:L78) ->  | M79: =MAX(M67:M78) -> 0 | N79: =AVERAGE(N67:N78) ->  | O79: =MAX(O67:O78) -> 0

Sheet Particulates
A1: =+'Cover Page'!$B$29 -> Annual Performance Report 2020 | E1: =+'Cover Page'!$B$33 -> Lincolnshire Energy from Waste Facility
A3: Monitoring of Particulate matter emissions | D3: Whole Installation | G3: See Notes in Cell Q3 | J3: =+A3 -> Monitoring of Particulate matter emissions | N3: Per Combustion Line | Q3: Notes:
Q4: User to add logic to complete Whole installation, Table A5:G18. From the data in Per Combustion Line, Table J6:O79, subject to No. of lines installed
A5: mg/Nm3 | B5: 1/2 Hourly Reference Periods | E5: Daily Reference Periods
A6: =+'Cover Page'!C39 -> 2020 | B6: 1/2 hourly PM ELV | C6: Monthly 1/2 hourly mean | D6: Highest 1/2 hourly maximum | E6: Daily PM ELV | F6: Monthly daily mean | G6: Highest daily maximum | J6: =+A6 -> 2020 | K6: mg/Nm3 | L6: Monthly 1/2 hourly mean | M6: Monthly 1/2 hourly maximum | N6: Monthly daily mean | O6: Monthly daily maximum
A7: Jan | B7: 30 | C7: =L7 -> 0 | D7: =M7 -> 0 | E7: 10 | F7: =N7 -> 0 | G7: =O7 -> 0 | J7: A1 | K7: Jan | L7: 0 | M7: 0 | N7: 0 | O7: 0
A8: Feb | B8: 30 | C8: =L8 -> 0 | D8: =M8 -> 0.1 | E8: 10 | F8: =N8 -> 0 | G8: =O8 -> 0 | K8: Feb | L8: 0 | M8: 0.1 | N8: 0 | O8: 0
A9: Mar | B9: 30 | C9: 0.2 | D9: 12.3 | E9: 10 | F9: 0.1 | G9: 2.1 | K9: Mar | L9: 0.2 | M9: 12.3 | N9: 0.1 | O9: 2.1 | Q9: Whole Installation table A5:G18:
A10: Apr | B10: 30 | C10: 0 | D10: 0.5 | E10: 10 | F10: 0 | G10: 0 | K10: Apr | L10: 0 | M10: 0.5 | N10: 0 | O10: 0 | Q10: Mean: for 1/2 hourly and daily periods calculate mean of values across all operational combustion lines for the month
A11: May | B11: 30 | C11: 0.1 | D11: 1.8 | E11: 10 | F11: 0.1 | G11: 0.5 | K11: May | L11: 0.1 | M11: 1.8 | N11: 0.1 | O11: 0.5
A12: Jun | B12: 30 | C12: 0.3 | D12: 1.8 | E12: 10 | F12: 0.3 | G12: 0.5 | K12: Jun | L12: 0.3 | M12: 1.8 | N12: 0.3 | O12: 0.5
A13: Jul | B13: 30 | C13: 0.2 | D13: 0.8 | E13: 10 | F13: 0.2 | G13: 0.2 | K13: Jul | L13: 0.2 | M13: 0.8 | N13: 0.2 | O13: 0.2 | Q13: Maximum: for 1/2 hourly and daily periods use the highest value across all operational combustion lines for the month
A14: Aug | B14: 30 | C14: 0.1 | D14: 1.2 | E14: 10 | F14: 0 | G14: 0.2 | K14: Aug | L14: 0.1 | M14: 1.2 | N14: 0 | O14: 0.2
A15: Sep | B15: 30 | C15: 0 | D15: 0.9 | E15: 10 | F15: 0 | G15: 0 | K15: Sep | L15: 0 | M15: 0.9 | N15: 0 | O15: 0
A16: Oct | B16: 30 | C16: 0 | D16: 9.5 | E16: 10 | F16: 0 | G16: 0.2 | K16: Oct | L16: 0 | M16: 9.5 | N16: 0 | O16: 0.2
A17: Nov | B17: 30 | C17: 0 | D17: 0.2 | E17: 10 | F17: 0 | G17: 0 | K17: Nov | L17: 0 | M17: 0.2 | N17: 0 | O17: 0
A18: Dec | B18: 30 | C18: 0 | D18: 0.6 | E18: 10 | F18: 0 | G18: 0 | K18: Dec | L18: 0 | M18: 0.6 | N18: 0 | O18: 0
K19: Annual | L19: =AVERAGE(L7:L18) -> 0.075 | M19: =MAX(M7:M18) -> 12.3 | N19: =AVERAGE(N7:N18) -> 0.05833333333 | O19: =MAX(O7:O18) -> 2.1
J21: =+A6 -> 2020 | K21: mg/Nm3 | L21: Monthly 1/2 hourly mean | M21: Monthly 1/2 hourly maximum | N21: Monthly daily mean | O21: Monthly daily maximum
J22: A2 | K22: Jan
K23: Feb
K24: Mar
K25: Apr
K26: May
K27: Jun
K28: Jul
K29: Aug
K30: Sep
K31: Oct
K32: Nov
K33: Dec
K34: Annual | L34: =AVERAGE(L22:L33) ->  | M34: =MAX(M22:M33) -> 0 | N34: =AVERAGE(N22:N33) ->  | O34: =MAX(O22:O33) -> 0
J36: =+A6 -> 2020 | K36: mg/Nm3 | L36: Monthly 1/2 hourly mean | M36: Monthly 1/2 hourly maximum | N36: Monthly daily mean | O36: Monthly daily maximum
J37: A3 | K37: Jan
K38: Feb
K39: Mar
K40: Apr
K41: May
K42: Jun
K43: Jul
K44: Aug
K45: Sep
K46: Oct
K47: Nov
A48: Comments : | K48: Dec
K49: Annual | L49: =AVERAGE(L37:L48) ->  | M49: =MAX(M37:M48) -> 0 | N49: =AVERAGE(N37:N48) ->  | O49: =MAX(O37:O48) -> 0
J51: =+A6 -> 2020 | K51: mg/Nm3 | L51: Monthly 1/2 hourly mean | M51: Monthly 1/2 hourly maximum | N51: Monthly daily mean | O51: Monthly daily maximum
J52: A4 | K52: Jan
K53: Feb
K54: Mar
K55: Apr
K56: May
K57: Jun
K58: Jul
K59: Aug
K60: Sep
K61: Oct
K62: Nov
K63: Dec
K64: Annual | L64: =AVERAGE(L52:L63) ->  | M64: =MAX(M52:M63) -> 0 | N64: =AVERAGE(N52:N63) ->  | O64: =MAX(O52:O63) -> 0
J66: =+A6 -> 2020 | K66: mg/Nm3 | L66: Monthly 1/2 hourly mean | M66: Monthly 1/2 hourly maximum | N66: Monthly daily mean | O66: Monthly daily maximum
J67: A5 | K67: Jan
K68: Feb
K69: Mar
K70: Apr
K71: May
K72: Jun
K73: Jul
K74: Aug
K75: Sep
K76: Oct
K77: Nov
K78: Dec
K79: Annual | L79: =AVERAGE(L67:L78) ->  | M79: =MAX(M67:M78) -> 0 | N79: =AVERAGE(N67:N78) ->  | O79: =MAX(O67:O78) -> 0

Sheet CO 95% 10 min
A1: =+'Cover Page'!$B$29 -> Annual Performance Report 2020 | E1: =+'Cover Page'!$B$33 -> Lincolnshire Energy from Waste Facility
A3: Monitoring of Carbon Monoxide (10-minute avg) | E3: Whole Installation | H3: See Notes in Cell S3 | J3: =+A3 -> Monitoring of Carbon Monoxide (10-minute avg) | O3: Per Combustion Line | Q3: Notes: | S3: Notes:
S4: User to add logic to complete Whole installation, Table A5:H18. From the data in Per Combustion Line, Table K6:Q79, subject to No. of lines installed
A5: mg/Nm3 | B5: 10-minute Reference Periods | F5: Daily Reference Periods
A6: =+'Cover Page'!C39 -> 2020 | B6: 95%ile 10-min avg CO ELV | C6: 95%ile 10-min avg maximum | D6: Monthly CO 10-min avg mean | E6: 10-min avg maximum | F6: Daily CO ELV | G6: Monthly daily mean | H6: Highest daily maximum | K6: =+A6 -> 2020 | L6: mg/Nm3 | M6: 95%ile 10-min avg maximum | N6: Monthly CO 10-min avg mean | O6: 10-min avg maximum | P6: Monthly daily mean | Q6: Monthly daily maximum
A7: Jan | B7: 150 | C7: =M7 -> 11.5 | D7: =N7 -> 3.1 | E7: 877.3 | F7: 50 | G7: =P7 -> 3.1 | H7: =Q7 -> 15.5 | K7: A1 | L7: Jan | M7: 11.5 | N7: 3.1 | O7: 877.3 | P7: 3.1 | Q7: 15.5
A8: Feb | B8: =+B7 -> 150 | C8: =M8 -> 57.7 | D8: 3.3 | E8: 702.9 | F8: =+F7 -> 50 | G8: =P8 -> 3.3 | H8: =Q8 -> 12.1 | L8: Feb | M8: 57.7 | N8: 3.3 | O8: 702.9 | P8: 3.3 | Q8: 12.1
A9: Mar | B9: =+B8 -> 150 | C9: 6.9 | D9: 2.5 | E9: 1357.7 | F9: =+F8 -> 50 | G9: 2.4 | H9: 10.2 | L9: Mar | M9: 6.9 | N9: 2.5 | O9: 1357.7 | P9: 2.4 | Q9: 10.2 | S9: Whole Installation table A5:H18:
A10: Apr | B10: 150 | C10: 15.2 | D10: 1.7 | E10: 260.1 | F10: 50 | G10: 1.7 | H10: 4.9 | L10: Apr | M10: 15.2 | N10: 1.7 | O10: 260.1 | P10: 1.7 | Q10: 4.9 | S10: Mean: for 10-min and daily periods use average of all operational combustion lines.
A11: May | B11: 150 | C11: 4.1 | D11: 1.2 | E11: 384.9 | F11: 50 | G11: 1.2 | H11: 4.5 | L11: May | M11: 4.1 | N11: 1.2 | O11: 384.9 | P11: 1.2 | Q11: 4.5
A12: Jun | B12: 150 | C12: 5.8 | D12: 1.9 | E12: 757.5 | F12: 50 | G12: 1.9 | H12: 7.3 | L12: Jun | M12: 5.8 | N12: 1.9 | O12: 757.5 | P12: 1.9 | Q12: 7.3
A13: Jul | B13: 150 | C13: 13.5 | D13: 2.3 | E13: 368.8 | F13: 50 | G13: 2.2 | H13: 5.2 | L13: Jul | M13: 13.5 | N13: 2.3 | O13: 368.8 | P13: 2.2 | Q13: 5.2 | S13: Maximum: for 10-min and daily periods use the highest of all operational combustion lines in any month.
A14: Aug | B14: 150 | C14: 23.6 | D14: 2.3 | E14: 232.2 | F14: 50 | G14: 1.9 | H14: 4.5 | L14: Aug | M14: 23.6 | N14: 2.3 | O14: 232.2 | P14: 1.9 | Q14: 4.5
A15: Sep | B15: 150 | C15: 4.2 | D15: 2 | E15: 244.9 | F15: 50 | G15: 1.9 | H15: 4.6 | L15: Sep | M15: 4.2 | N15: 2 | O15: 244.9 | P15: 1.9 | Q15: 4.6
A16: Oct | B16: 150 | C16: 17.6 | D16: 2.5 | E16: 589.5 | F16: 50 | G16: 2.4 | H16: 7.9 | L16: Oct | M16: 17.6 | N16: 2.5 | O16: 589.5 | P16: 2.4 | Q16: 7.9
A17: Nov | B17: 150 | C17: 32.8 | D17: 3.2 | E17: 734.6 | F17: 50 | G17: 3.3 | H17: 14.1 | L17: Nov | M17: 32.8 | N17: 3.2 | O17: 734.6 | P17: 3.3 | Q17: 14.1
A18: Dec | B18: 150 | C18: 44.1 | D18: 3.2 | E18: 536.5 | F18: 50 | G18: 3.2 | H18: 10.1 | L18: Dec | M18: 44.1 | N18: 3.2 | O18: 536.5 | P18: 3.2 | Q18: 10.1
L19: Annual | M19: =AVERAGE(M7:M18) -> 19.75 | N19: =AVERAGE(N7:N18) -> 2.433333333 | O19: =MAX(O7:O18) -> 1357.7 | P19: =AVERAGE(P7:P18) -> 2.375 | Q19: =MAX(Q7:Q18) -> 15.5
K21: =+A6 -> 2020 | L21: mg/Nm3 | M21: 95%ile 10-min avg maximum | N21: Monthly CO 10-min avg mean | O21: 10-min avg maximum | P21: Monthly daily mean | Q21: Monthly daily maximum
K22: A2 | L22: Jan
L23: Feb
L24: Mar
L25: Apr
L26: May
L27: Jun
L28: Jul
L29: Aug
L30: Sep
L31: Oct
L32: Nov
L33: Dec
L34: Annual | M34: =AVERAGE(M22:M33) ->  | O34: =MAX(O22:O33) -> 0 | P34: =AVERAGE(P22:P33) ->  | Q34: =MAX(Q22:Q33) -> 0
K36: =+A6 -> 2020 | L36: mg/Nm3 | M36: 95%ile 10-min avg maximum | N36: Monthly CO 10-min avg mean | O36: 10-min avg maximum | P36: Monthly daily mean | Q36: Monthly daily maximum
K37: A3 | L37: Jan
L38: Feb
L39: Mar
L40: Apr
L41: May
L42: Jun
L43: Jul
L44: Aug
L45: Sep
L46: Oct
L47: Nov
A48: Comments : | L48: Dec
A49: Environment Agency explanatory note: The 10-minute average ELV is based on the “95th percentile”. In this case this means that 95% of the 10 minute averages in the relevant 24-hour period (i.e. 137) must be below 150 mg/Nm3, and 5% (i.e. 7) are allowed to be any value above 150 mg/Nm3. Whilst we expect operators to minimise CO emissions at all times, it is perfectly acceptable for the value of the maximum 10-minute average to be above 150 mg/Nm3, provided the 95th percentile ELV has been met for that period. | L49: Annual | M49: =AVERAGE(M37:M48) ->  | O49: =MAX(O37:O48) -> 0 | P49: =AVERAGE(P37:P48) ->  | Q49: =MAX(Q37:Q48) -> 0
K51: =+A6 -> 2020 | L51: mg/Nm3 | M51: 95%ile 10-min avg maximum | N51: Monthly CO 10-min avg mean | O51: 10-min avg maximum | P51: Monthly daily mean | Q51: Monthly daily maximum
K52: A4 | L52: Jan
L53: Feb
L54: Mar
L55: Apr
L56: May
L57: Jun
L58: Jul
L59: Aug
L60: Sep
L61: Oct
L62: Nov
L63: Dec
L64: Annual | M64: =AVERAGE(M52:M63) ->  | O64: =MAX(O52:O63) -> 0 | P64: =AVERAGE(P52:P63) ->  | Q64: =MAX(Q52:Q63) -> 0
K66: =+A6 -> 2020 | L66: mg/Nm3 | M66: 95%ile 10-min avg maximum | N66: Monthly CO 10-min avg mean | O66: 10-min avg maximum | P66: Monthly daily mean | Q66: Monthly daily maximum
K67: A5 | L67: Jan
L68: Feb
L69: Mar
L70: Apr
L71: May
L72: Jun
L73: Jul
L74: Aug
L75: Sep
L76: Oct
L77: Nov
L78: Dec
L79: Annual | M79: =AVERAGE(M67:M78) ->  | O79: =MAX(O67:O78) -> 0 | P79: =AVERAGE(P67:P78) ->  | Q79: =MAX(Q67:Q78) -> 0

Sheet NH3
A1: =+'Cover Page'!$B$29 -> Annual Performance Report 2020 | E1: =+'Cover Page'!$B$33 -> Lincolnshire Energy from Waste Facility
A3: Monitoring of Ammnonia emissions | D3: Whole Installation | G3: See Notes in Cell Q3 | J3: =+A3 -> Monitoring of Ammnonia emissions | N3: Per Combustion Line | Q3: Notes:
Q4: User to add logic to complete Whole installation, Table A5:G18. From the data in Per Combustion Line, Table J6:O79, subject to No. of lines installed
A5: mg/Nm3 | B5: 1/2 Hourly Reference Periods | E5: Daily Reference Periods
A6: =+'Cover Page'!C39 -> 2020 | B6: 1/2 hourly NH3 ELV | C6: Monthly 1/2 hourly mean | D6: Highest 1/2 hourly maximum | E6: Daily NH3 ELV | F6: Monthly daily mean | G6: Highest daily maximum | J6: =+A6 -> 2020 | K6: mg/Nm3 | L6: Monthly 1/2 hourly mean | M6: Monthly 1/2 hourly maximum | N6: Monthly daily mean | O6: Monthly daily maximum
A7: Jan | B7: N/A | C7: =L7 -> 1 | D7: =M7 -> 1.8 | E7: N/A | F7: =N7 -> 1 | G7: =O7 -> 1.3 | J7: A1 | K7: Jan | L7: 1 | M7: 1.8 | N7: 1 | O7: 1.3
A8: Feb | B8: =+B7 -> N/A | C8: =L8 -> 1.1 | D8: =M8 -> 2.4 | E8: N/A | F8: =N8 -> 1.1 | G8: =O8 -> 1.3 | K8: Feb | L8: 1.1 | M8: 2.4 | N8: 1.1 | O8: 1.3
A9: Mar | B9: =+B8 -> N/A | C9: 1.3 | D9: 5.7 | E9: N/A | F9: 1.2 | G9: 1.9 | K9: Mar | L9: 1.3 | M9: 5.7 | N9: 1.2 | O9: 1.9 | Q9: Whole Installation table A5:G18:
A10: Apr | B10: N/A | C10: 1.3 | D10: 3.1 | E10: N/A | F10: 1.2 | G10: 1.6 | K10: Apr | L10: 1.3 | M10: 3.1 | N10: 1.2 | O10: 1.6 | Q10: Mean: for 1/2 hourly and daily periods calculate mean of values across all operational combustion lines for the month
A11: May | B11: N/A | C11: 1.4 | D11: 4.1 | E11: N/A | F11: 1.4 | G11: 2 | K11: May | L11: 1.4 | M11: 4.1 | N11: 1.4 | O11: 2
A12: Jun | B12: N/A | C12: 1.5 | D12: 2.8 | E12: N/A | F12: 1.4 | G12: 1.8 | K12: Jun | L12: 1.5 | M12: 2.8 | N12: 1.4 | O12: 1.8
A13: Jul | B13: N/A | C13: 1.7 | D13: 10 | E13: N/A | F13: 1.7 | G13: 2.5 | K13: Jul | L13: 1.7 | M13: 10 | N13: 1.7 | O13: 2.5 | Q13: Maximum: for 1/2 hourly and daily periods use the highest value across all operational combustion lines for the month
A14: Aug | B14: N/A | C14: 1.9 | D14: 7.4 | E14: N/A | F14: 1.8 | G14: 2.4 | K14: Aug | L14: 1.9 | M14: 7.4 | N14: 1.8 | O14: 2.4
A15: Sep | B15: N/A | C15: 1.4 | D15: 3.7 | E15: N/A | F15: 1.3 | G15: 1.9 | K15: Sep | L15: 1.4 | M15: 3.7 | N15: 1.3 | O15: 1.9
A16: Oct | B16: N/A | C16: 1.2 | D16: 5.9 | E16: N/A | F16: 1.1 | G16: 1.7 | K16: Oct | L16: 1.2 | M16: 5.9 | N16: 1.1 | O16: 1.7
A17: Nov | B17: N/A | C17: 1.3 | D17: 4.1 | E17: N/A | F17: 1.3 | G17: 2.1 | K17: Nov | L17: 1.3 | M17: 4.1 | N17: 1.3 | O17: 2.1
A18: Dec | B18: N/A | C18: 1 | D18: 2.6 | E18: N/A | F18: 1 | G18: 1.3 | K18: Dec | L18: 1 | M18: 2.6 | N18: 1 | O18: 1.3
K19: Annual | L19: =AVERAGE(L7:L18) -> 1.341666667 | M19: =MAX(M7:M18) -> 10 | N19: =AVERAGE(N7:N18) -> 1.291666667 | O19: =MAX(O7:O18) -> 2.5
J21: =+A6 -> 2020 | K21: mg/Nm3 | L21: Monthly 1/2 hourly mean | M21: Monthly 1/2 hourly maximum | N21: Monthly daily mean | O21: Monthly daily maximum
J22: A2 | K22: Jan
K23: Feb
K24: Mar
K25: Apr
K26: May
K27: Jun
K28: Jul
K29: Aug
K30: Sep
K31: Oct
K32: Nov
K33: Dec
K34: Annual | L34: =AVERAGE(L22:L33) ->  | M34: =MAX(M22:M33) -> 0 | N34: =AVERAGE(N22:N33) ->  | O34: =MAX(O22:O33) -> 0
J36: =+A6 -> 2020 | K36: mg/Nm3 | L36: Monthly 1/2 hourly mean | M36: Monthly 1/2 hourly maximum | N36: Monthly daily mean | O36: Monthly daily maximum
J37: A3 | K37: Jan
K38: Feb
K39: Mar
K40: Apr
K41: May
K42: Jun
K43: Jul
K44: Aug
K45: Sep
K46: Oct
K47: Nov
A48: Comments : | K48: Dec
A49: An indicated ELV value of zero in the table above means that no ammonia limit is set in the permit. | K49: Annual | L49: =AVERAGE(L37:L48) ->  | M49: =MAX(M37:M48) -> 0 | N49: =AVERAGE(N37:N48) ->  | O49: =MAX(O37:O48) -> 0
J51: =+A6 -> 2020 | K51: mg/Nm3 | L51: Monthly 1/2 hourly mean | M51: Monthly 1/2 hourly maximum | N51: Monthly daily mean | O51: Monthly daily maximum
J52: A4 | K52: Jan
K53: Feb
K54: Mar
K55: Apr
K56: May
K57: Jun
K58: Jul
K59: Aug
K60: Sep
K61: Oct
K62: Nov
K63: Dec
K64: Annual | L64: =AVERAGE(L52:L63) ->  | M64: =MAX(M52:M63) -> 0 | N64: =AVERAGE(N52:N63) ->  | O64: =MAX(O52:O63) -> 0
J66: =+A6 -> 2020 | K66: mg/Nm3 | L66: Monthly 1/2 hourly mean | M66: Monthly 1/2 hourly maximum | N66: Monthly daily mean | O66: Monthly daily maximum
J67: A5 | K67: Jan
K68: Feb
K69: Mar
K70: Apr
K71: May
K72: Jun
K73: Jul
K74: Aug
K75: Sep
K76: Oct
K77: Nov
K78: Dec
K79: Annual | L79: =AVERAGE(L67:L78) ->  | M79: =MAX(M67:M78) -> 0 | N79: =AVERAGE(N67:N78) ->  | O79: =MAX(O67:O78) -> 0
